fUST/lending_fUST_20250131
["ID","MTS","AMOUNT","RATE_DAILY","PERIOD"]
[350977242,1738263046897,-500.0,0.00017945,2]
[350977243,1738263046906,-500.0,0.00017945,2]
[350977244,1738263046916,-580.6,0.00017945,2]
[350977245,1738263046925,-2492.92,0.00017945,2]
[350977246,1738263046935,-1152.88,0.00017945,2]
[350977247,1738263046943,-289.70715072,0.0001802,2]
[350977248,1738263046953,-866.84,0.00018082,2]
[350977249,1738263046962,-500.0,0.00018082,2]
[350977250,1738263046971,-500.0,0.00018082,2]
[350977251,1738263046981,-580.6,0.00018082,2]
[350977252,1738263046992,-2492.92,0.00018082,2]
[350977253,1738263047002,-1152.88,0.00018082,2]
[350977254,1738263047011,-207.18584088,0.00018138,2]
[350977255,1738263047020,-866.84,0.00018219,2]
[350977256,1738263047029,-500.0,0.00018219,2]
[350977257,1738263047039,-500.0,0.00018219,2]
[350977258,1738263047048,-580.6,0.00018219,2]
[350977259,1738263047060,-2492.92,0.00018219,2]
[350977260,1738263047069,-1152.88,0.00018219,2]
[350977261,1738263047078,-158.264,0.00018305,2]
[350977262,1738263047088,-509.34085419,0.00018338,2]
[350977263,1738263047098,-866.84,0.00018356,2]
[350977264,1738263047107,-500.0,0.00018356,2]
[350977265,1738263047116,-500.0,0.00018356,2]
[350977266,1738263047128,-580.6,0.00018356,2]
[350977267,1738263047137,-2492.92,0.00018356,2]
[350977268,1738263047146,-1152.88,0.00018356,2]
[350977269,1738263047155,-207.18584088,0.00018376,2]
[350977270,1738263047166,-500.0,0.00018464,2]
[350977271,1738263047175,-866.84,0.00018493,2]
[350977272,1738263047190,-500.0,0.00018493,2]
[350977273,1738263047201,-500.0,0.00018493,2]
[350977274,1738263047211,-580.6,0.00018493,2]
[350977275,1738263047222,-2492.92,0.00018493,2]
[350977276,1738263047233,-1152.88,0.00018493,2]
[350977277,1738263047243,-156.1,0.000186,2]
[350977278,1738263047254,-207.18584088,0.00018614,2]
[350977279,1738263047264,-866.84,0.0001863,2]
[350977280,1738263047273,-500.0,0.0001863,2]
[350977281,1738263047282,-500.0,0.0001863,2]
[350977282,1738263047292,-580.6,0.0001863,2]
[350977283,1738263047301,-2492.92,0.0001863,2]
[350977284,1738263047310,-1152.88,0.0001863,2]
[350977285,1738263047320,-151.0,0.000187,2]
[350977286,1738263047330,-154.2803338,0.00018712,2]
[350977287,1738263047342,-866.84,0.00018767,2]
[350977288,1738263047354,-500.0,0.00018767,2]
[350977289,1738263047363,-500.0,0.00018767,2]
[350977290,1738263047375,-580.6,0.00018767,2]
[350977291,1738263047383,-2492.92,0.00018767,2]
[350977292,1738263047392,-1152.88,0.00018767,2]
[350977293,1738263047401,-207.18584088,0.00018852,2]
[350977294,1738263047410,-289.70715072,0.00018861,2]
[350977295,1738263047419,-150.0,0.000189,2]
[350977296,1738263047428,-866.84,0.00018904,2]
[350977297,1738263047438,-500.0,0.00018904,2]
[350977298,1738263047447,-500.0,0.00018904,2]
[350977299,1738263047456,-580.6,0.00018904,2]
[350977300,1738263047465,-2492.92,0.00018904,2]
[350977301,1738263047474,-1152.88,0.00018904,2]
[350977302,1738263047483,-866.84,0.00019041,2]
[350977303,1738263047492,-500.0,0.00019041,2]
[350977304,1738263047501,-424.86606979,0.00019041,2]
[350977305,1738263047511,-580.6,0.00019041,2]
[350977306,1738263047520,-2492.92,0.00019041,2]
[350977307,1738263047529,-1152.88,0.00019041,2]
[350977308,1738263047538,-207.18584088,0.0001909,2]
[350977309,1738263047548,-500.0,0.00019178,7]
[350977310,1738263047558,-866.84,0.00019178,2]
[350977311,1738263047567,-500.0,0.00019178,2]
[350977312,1738263047576,-580.6,0.00019178,2]
[350977313,1738263047585,-33.02707628,0.00019178,2]
[350977315,1738263744750,175.184108,0.00013973,2]
[350977316,1738263800405,3106.83954363,0.00015101,2]
[350977318,1738264040720,-166.0,0.00016021,2]
[350977319,1738264040741,-865.91481822,0.00016255,2]
[350977320,1738264046094,-352.92574596,0.00016255,2]
[350977327,1738264166096,-791.7984957,0.00016015,2]
[350977328,1738264166117,-979.3518464,0.00016101,2]
[350977329,1738264166138,-3550.88423962,0.00016255,2]
[350977332,1738264190951,241.96112472,0.00015902,2]
[350977333,1738264190973,268.8288254,0.00015902,2]
[350977358,1738264238560,-4539.81234368,0.00015902,2]
[350977359,1738264238570,-982.0154046,0.00016077,2]
[350977360,1738264238579,-845.8866292,0.00016419,2]
[350977361,1738264238588,-500.0,0.00016438,2]
[350977362,1738264238597,-300.0,0.00016511,2]
[350977363,1738264238606,-152.0865339,0.00016512,2]
[350977364,1738264238616,-500.0,0.00016512,2]
[350977365,1738264238626,-500.0,0.00016512,2]
[350977366,1738264238636,-500.0,0.00016512,2]
[350977367,1738264238645,-500.0,0.00016512,2]
[350977368,1738264238655,-500.0,0.00016512,2]
[350977369,1738264238674,-500.0,0.00016512,2]
[350977370,1738264238683,-500.0,0.00016512,2]
[350977371,1738264238693,-712.19,0.00016512,2]
[350977372,1738264238703,-427.50203581,0.00016512,2]
[350977373,1738264238712,-500.0,0.00016512,2]
[350977374,1738264238722,-500.0,0.00016573,2]
[350977375,1738264238731,-559.16,0.00016573,2]
[350977376,1738264238741,-500.0,0.00016573,2]
[350977377,1738264238751,-500.0,0.00016573,2]
[350977378,1738264238761,-163.91,0.00016573,2]
[350977379,1738264238770,-500.0,0.00016574,2]
[350977380,1738264238782,-214.13,0.00016574,2]
[350977381,1738264238795,-500.0,0.00016574,2]
[350977382,1738264238807,-500.0,0.00016574,2]
[350977383,1738264238819,-500.0,0.00016575,2]
[350977384,1738264238831,-500.0,0.00016649,2]
[350977385,1738264238842,-712.19,0.00016649,2]
[350977386,1738264238855,-500.0,0.0001671,2]
[350977387,1738264238865,-500.0,0.0001671,2]
[350977388,1738264238875,-500.0,0.00016711,2]
[350977389,1738264238886,-230.67890923,0.00016711,2]
[350977395,1738264240889,-13.72894637,0.00016711,2]
[350977399,1738264243895,-255.5921444,0.00016711,2]
[350977400,1738264243908,-143.465926,0.00016711,2]
[350977401,1738264243927,-356.534074,0.00016711,2]
[350977402,1738264243944,-500.0,0.00016712,2]
[350977403,1738264243964,-139.14131518,0.00016786,2]
[350977404,1738264243980,-526.95,0.00016786,2]
[350977406,1738264246791,-40.0,0.00016786,2]
[350977408,1738264763227,177.061862,0.00013973,2]
[350977412,1738265231144,-228.79244234,0.00015433,2]
[350977413,1738265231166,-196.28050284,0.00015446,2]
[350977414,1738265232251,-1200.0,0.00015446,2]
[350977415,1738265270951,158.4593464,0.00014976,2]
[350977434,1738265349119,-170.0272927,0.00015286,2]
[350977435,1738265349141,-144.00039433,0.00015446,2]
[350977436,1738265358131,-3432.43609073,0.00015446,2]
[350977437,1738265358154,-24900.0,0.00015624,2]
[350977438,1738265358178,-1489.04455899,0.00015805,2]
[350977439,1738265359142,-436.09775637,0.00015805,2]
[350977440,1738265359164,-494.37567111,0.00016066,2]
[350977496,1738265432957,-21.05872489,0.00016066,2]
[350977497,1738265432966,-300.0,0.00016437,2]
[350977498,1738265432975,-253.2061909,0.00016438,2]
[350977508,1738265433066,-246.7938091,0.00016438,2]
[350977510,1738265433078,-353.73561187,0.00016438,2]
[350977512,1738265433088,-500.0,0.00016438,2]
[350977514,1738265433097,-500.0,0.00016438,2]
[350977516,1738265433107,-610.81,0.00016438,2]
[350977518,1738265433117,-500.0,0.00016438,2]
[350977520,1738265433126,-394.34008367,0.00016438,2]
[350977523,1738265433136,-500.0,0.00016512,2]
[350977526,1738265433146,-500.0,0.00016512,2]
[350977528,1738265433156,-500.0,0.00016512,2]
[350977530,1738265433166,-202.50220175,0.00016512,2]
[350977532,1738265433176,-500.0,0.00016512,2]
[350977534,1738265433186,-500.0,0.00016512,2]
[350977536,1738265433196,-500.0,0.00016512,2]
[350977538,1738265433205,-500.0,0.00016512,2]
[350977540,1738265433216,-79.94274925,0.00016512,2]
[350977845,1738265438748,-500.0,0.00016438,2]
[350978080,1738265440971,-500.0,0.00016438,2]
[350978081,1738265440981,-500.0,0.00016438,2]
[350978082,1738265440991,-420.05725075,0.00016512,2]
[350978083,1738265441001,-500.0,0.00016512,2]
[350978084,1738265441010,-500.0,0.00016512,2]
[350978085,1738265441020,-500.0,0.00016512,2]
[350978086,1738265441031,-290.07180557,0.00016512,2]
[350978087,1738265441040,-500.0,0.00016512,2]
[350978088,1738265441050,-500.0,0.00016512,2]
[350978089,1738265441060,-500.0,0.00016512,2]
[350978090,1738265441070,-500.0,0.00016512,2]
[350978091,1738265441080,-502.70532787,0.00016512,2]
[350978092,1738265441089,-502.06170361,0.00016512,2]
[350978093,1738265441098,-213.66190001,0.00016512,2]
[350978094,1738265441110,-500.0,0.00016512,2]
[350978095,1738265441120,-500.0,0.00016512,2]
[350978096,1738265441130,-500.0,0.00016512,2]
[350978097,1738265441139,-500.0,0.00016512,2]
[350978099,1738265441148,-500.0,0.00016512,2]
[350978100,1738265441158,-500.0,0.00016512,2]
[350978101,1738265441168,-500.0,0.00016512,2]
[350978102,1738265441177,-500.0,0.00016512,2]
[350978103,1738265441186,-500.0,0.00016512,2]
[350978105,1738265441195,-605.8451724,0.00016512,2]
[350978107,1738265441205,-500.0,0.00016512,2]
[350978109,1738265441220,-500.0,0.00016512,2]
[350978111,1738265441230,-500.0,0.00016512,2]
[350978113,1738265441240,-500.0,0.00016512,2]
[350978115,1738265441250,-500.0,0.00016512,2]
[350978117,1738265441260,-500.0,0.00016512,2]
[350978119,1738265441270,-500.0,0.00016512,2]
[350978121,1738265441279,-154.95033612,0.00016548,2]
[350978123,1738265441289,-500.0,0.00016575,2]
[350978125,1738265441299,-500.0,0.00016575,2]
[350978127,1738265441309,-500.0,0.00016575,2]
[350978129,1738265441318,-12851.89279531,0.00016648,5]
[350978131,1738265441328,-1119.1161939,0.00016648,5]
[350978133,1738265441337,-500.0,0.00016648,2]
[350978135,1738265441347,-500.0,0.00016648,2]
[350978137,1738265441356,-500.0,0.00016648,2]
[350978139,1738265441366,-500.0,0.00016648,2]
[350978141,1738265441375,-500.0,0.00016648,2]
[350978143,1738265441385,-500.0,0.00016648,2]
[350978145,1738265441395,-500.0,0.00016648,2]
[350978147,1738265441404,-500.0,0.00016648,2]
[350978149,1738265441414,-504.13007578,0.00016648,2]
[350978151,1738265441423,-500.0,0.00016648,2]
[350978153,1738265441433,-500.0,0.00016648,2]
[350978155,1738265441443,-500.0,0.00016648,2]
[350978157,1738265441453,-1897.85,0.00016648,2]
[350978159,1738265441463,-500.0,0.00016648,2]
[350978161,1738265441473,-500.0,0.00016648,2]
[350978163,1738265441482,-500.0,0.00016648,2]
[350978165,1738265441492,-500.0,0.00016648,2]
[350978167,1738265441501,-502.55612792,0.00016648,2]
[350978169,1738265441511,-500.0,0.00016648,2]
[350978171,1738265441522,-505.01156331,0.00016648,2]
[350978173,1738265441532,-503.33115944,0.00016648,2]
[350978175,1738265441541,-504.61595925,0.00016648,2]
[350978177,1738265441551,-500.0,0.00016648,2]
[350978179,1738265441559,-500.0,0.00016648,2]
[350978181,1738265441569,-500.0,0.00016648,2]
[350978183,1738265441578,-500.0,0.00016648,2]
[350978185,1738265441586,-500.0,0.00016648,2]
[350978187,1738265441596,-500.0,0.00016648,2]
[350978189,1738265441606,-500.0,0.00016648,2]
[350978191,1738265441615,-500.0,0.00016648,2]
[350978193,1738265441624,-402.63281711,0.00016648,2]
[350978195,1738265441634,-500.0,0.00016648,2]
[350978197,1738265441643,-500.0,0.00016648,2]
[350978199,1738265441653,-500.0,0.00016648,2]
[350978201,1738265441662,-500.0,0.00016648,2]
[350978203,1738265441671,-500.0,0.00016648,2]
[350978205,1738265441680,-500.0,0.00016648,2]
[350978207,1738265441689,-501.00313432,0.00016648,2]
[350978208,1738265441699,-500.0,0.00016648,2]
[350978210,1738265441708,-500.0,0.00016648,2]
[350978212,1738265441718,-500.0,0.00016648,2]
[350978214,1738265441727,-500.0,0.0001671,2]
[350978216,1738265441736,-628.02,0.0001671,2]
[350978218,1738265441746,-500.0,0.0001671,2]
[350978220,1738265441755,-500.0,0.0001671,2]
[350978222,1738265441765,-738.55,0.0001671,2]
[350978224,1738265441775,-500.0,0.0001671,2]
[350978226,1738265441785,-500.0,0.0001671,2]
[350978228,1738265441794,-500.0,0.0001671,2]
[350978230,1738265441804,-500.0,0.0001671,2]
[350978233,1738265441814,-500.0,0.0001671,2]
[350978234,1738265441823,-500.0,0.0001671,2]
[350978236,1738265441833,-500.0,0.0001671,2]
[350978238,1738265441843,-500.0,0.0001671,2]
[350978240,1738265441852,-511.2617337,0.0001671,2]
[350978242,1738265441862,-500.0,0.0001671,2]
[350978244,1738265441871,-500.0,0.0001671,2]
[350978246,1738265441881,-500.0,0.0001671,2]
[350978248,1738265441890,-500.0,0.0001671,2]
[350978250,1738265441904,-500.0,0.0001671,2]
[350978252,1738265441923,-500.0,0.0001671,2]
[350978254,1738265441933,-500.0,0.0001671,2]
[350978256,1738265441942,-500.0,0.0001671,2]
[350978258,1738265441952,-500.0,0.0001671,2]
[350978260,1738265441962,-500.0,0.0001671,2]
[350978262,1738265441972,-500.0,0.0001671,2]
[350978264,1738265441981,-500.0,0.0001671,2]
[350978266,1738265441991,-500.0,0.0001671,2]
[350978268,1738265442000,-500.0,0.0001671,2]
[350978270,1738265442010,-500.0,0.0001671,2]
[350978272,1738265442021,-500.0,0.0001671,2]
[350978274,1738265442030,-500.0,0.0001671,2]
[350978276,1738265442040,-500.0,0.0001671,2]
[350978278,1738265442050,-500.0,0.0001671,2]
[350978280,1738265442059,-500.0,0.0001671,2]
[350978282,1738265442068,-304.46,0.00016712,2]
[350978284,1738265442078,-1897.85,0.00016785,2]
[350978286,1738265442088,-500.0,0.00016847,2]
[350978288,1738265442097,-500.0,0.00016847,2]
[350978290,1738265442106,-543.0,0.00016847,2]
[350978292,1738265442116,-163.18,0.00016847,2]
[350978294,1738265442125,-500.0,0.00016847,2]
[350978296,1738265442134,-500.0,0.00016847,2]
[350978298,1738265442144,-526.9,0.00016847,2]
[350978300,1738265442154,-500.0,0.00016847,2]
[350978302,1738265442163,-500.0,0.00016847,2]
[350978304,1738265442173,-500.0,0.00016847,2]
[350978306,1738265442183,-500.0,0.00016847,2]
[350978308,1738265442192,-500.0,0.00016847,2]
[350978310,1738265442202,-500.0,0.00016847,2]
[350978312,1738265442211,-500.0,0.00016847,2]
[350978314,1738265442221,-500.0,0.00016847,2]
[350978316,1738265442231,-500.0,0.00016847,2]
[350978318,1738265442240,-500.0,0.00016847,2]
[350978320,1738265442249,-500.0,0.00016847,2]
[350978322,1738265442259,-1897.85,0.00016922,2]
[350978324,1738265442268,-500.0,0.00016984,2]
[350978326,1738265442278,-500.0,0.00016984,2]
[350978328,1738265442287,-296.86,0.00016984,2]
[350978330,1738265442296,-500.0,0.00016984,2]
[350978332,1738265442306,-500.0,0.00016984,2]
[350978334,1738265442315,-500.0,0.00017058,2]
[350978335,1738265442325,-500.0,0.00017058,2]
[350978337,1738265442334,-500.0,0.00017058,2]
[350978339,1738265442344,-500.0,0.00017058,2]
[350978341,1738265442354,-500.0,0.00017058,2]
[350978343,1738265442363,-500.0,0.00017058,2]
[350978345,1738265442373,-500.0,0.00017058,2]
[350978347,1738265442384,-500.0,0.00017058,2]
[350978349,1738265442393,-500.0,0.00017058,2]
[350978351,1738265442402,-500.0,0.00017058,2]
[350978353,1738265442412,-500.0,0.00017058,2]
[350978355,1738265442421,-500.0,0.00017058,2]
[350978357,1738265442431,-500.0,0.00017058,2]
[350978359,1738265442440,-500.0,0.00017058,2]
[350978361,1738265442449,-500.0,0.00017058,2]
[350978363,1738265442459,-500.0,0.00017058,2]
[350978366,1738265442470,-500.0,0.00017058,2]
[350978367,1738265442479,-500.0,0.00017058,2]
[350978369,1738265442489,-500.0,0.00017058,2]
[350978371,1738265442499,-500.0,0.00017058,2]
[350978373,1738265442509,-500.0,0.00017058,2]
[350978375,1738265442518,-500.0,0.00017058,2]
[350978377,1738265442527,-500.0,0.00017058,2]
[350978379,1738265442536,-500.0,0.00017058,2]
[350978381,1738265442546,-500.0,0.00017058,2]
[350978383,1738265442555,-500.0,0.00017058,2]
[350978385,1738265442564,-500.0,0.00017058,2]
[350978387,1738265442573,-500.0,0.00017058,2]
[350978389,1738265442582,-500.0,0.00017058,2]
[350978391,1738265442591,-500.0,0.00017058,2]
[350978393,1738265442603,-181.24020965,0.00017058,2]
[350978395,1738265442611,-500.0,0.00017058,2]
[350978397,1738265442621,-500.0,0.00017058,2]
[350978399,1738265442630,-500.0,0.00017058,2]
[350978402,1738265442641,-500.0,0.00017058,2]
[350978404,1738265442650,-500.0,0.00017058,2]
[350978406,1738265442659,-500.0,0.00017058,2]
[350978408,1738265442669,-500.0,0.00017058,2]
[350978410,1738265442678,-500.0,0.00017058,2]
[350978411,1738265442687,-500.0,0.00017058,2]
[350978414,1738265442701,-500.0,0.00017058,2]
[350978416,1738265442718,-500.0,0.00017058,2]
[350978418,1738265442728,-500.0,0.00017058,2]
[350978419,1738265442738,-500.0,0.00017058,2]
[350978422,1738265442748,-500.0,0.00017058,2]
[350978423,1738265442759,-500.0,0.00017058,2]
[350978425,1738265442772,-500.0,0.00017058,2]
[350978427,1738265442782,-500.0,0.00017058,2]
[350978429,1738265442792,-500.0,0.00017058,2]
[350978431,1738265442801,-500.0,0.00017058,2]
[350978433,1738265442811,-500.0,0.00017058,2]
[350978435,1738265442820,-500.0,0.00017058,2]
[350978437,1738265442830,-500.0,0.00017058,2]
[350978439,1738265442839,-500.0,0.00017058,2]
[350978451,1738265442958,-500.0,0.00017058,2]
[350978453,1738265442968,-500.0,0.00017058,2]
[350978455,1738265442978,-500.0,0.00017058,2]
[350978457,1738265442988,-500.0,0.00017058,2]
[350978460,1738265442999,-492.35972542,0.00017058,2]
[350978461,1738265443008,-500.0,0.00017059,2]
[350978463,1738265443023,-578.52016324,0.00017059,2]
[350978466,1738265443033,-500.0,0.00017059,2]
[350978468,1738265443042,-500.0,0.00017059,2]
[350978470,1738265443052,-1897.85,0.00017059,2]
[350978472,1738265443062,-500.0,0.00017059,2]
[350978473,1738265443071,-500.0,0.00017059,2]
[350978476,1738265443081,-500.0,0.00017059,2]
[350978477,1738265443092,-503.15970803,0.00017059,2]
[350978479,1738265443102,-500.0,0.00017059,2]
[350978481,1738265443113,-500.0,0.00017059,2]
[350978483,1738265443123,-500.0,0.00017059,2]
[350978485,1738265443133,-500.0,0.00017059,2]
[350978487,1738265443144,-500.0,0.00017059,2]
[350978490,1738265443155,-500.0,0.00017059,2]
[350978492,1738265443166,-500.0,0.00017059,2]
[350978494,1738265443181,-501.73240557,0.00017059,2]
[350978497,1738265443202,-500.0,0.00017059,2]
[350978498,1738265443215,-500.0,0.00017059,2]
[350978501,1738265443225,-500.0,0.00017059,2]
[350978502,1738265443236,-500.0,0.00017059,2]
[350978505,1738265443248,-500.0,0.00017059,2]
[350978507,1738265443259,-500.0,0.00017059,2]
[350978508,1738265443278,-500.0,0.00017059,2]
[350978510,1738265443289,-500.0,0.00017059,2]
[350978513,1738265443301,-500.0,0.00017059,2]
[350978514,1738265443313,-500.0,0.00017059,2]
[350978516,1738265443323,-500.0,0.00017059,2]
[350978518,1738265443334,-500.0,0.00017059,2]
[350978520,1738265443344,-500.0,0.00017059,2]
[350978522,1738265443354,-500.0,0.00017059,2]
[350978524,1738265443364,-500.0,0.00017059,2]
[350978526,1738265443373,-500.0,0.00017059,2]
[350978528,1738265443384,-500.0,0.00017059,2]
[350978530,1738265443394,-500.0,0.00017059,2]
[350978532,1738265443403,-501.81943548,0.00017059,2]
[350978534,1738265443412,-500.0,0.00017059,2]
[350978536,1738265443422,-500.0,0.00017059,2]
[350978538,1738265443432,-500.0,0.00017059,2]
[350978540,1738265443442,-500.0,0.00017059,2]
[350978542,1738265443452,-500.0,0.00017059,2]
[350978545,1738265443462,-500.0,0.00017059,2]
[350978546,1738265443472,-500.0,0.00017059,2]
[350978549,1738265443481,-374.11629205,0.00017059,2]
[350978552,1738265443491,-377.04637979,0.00017059,2]
[350978555,1738265443501,-329.74289784,0.00017059,2]
[350978559,1738265443510,-491.84916938,0.00017059,2]
[350978562,1738265443522,-500.0,0.00017059,2]
[350978566,1738265443531,-500.0,0.00017059,2]
[350978568,1738265443540,-500.0,0.00017059,2]
[350978572,1738265443550,-500.0,0.00017059,2]
[350978575,1738265443559,-500.0,0.00017059,2]
[350978579,1738265443568,-500.0,0.00017059,2]
[350978581,1738265443578,-500.0,0.00017059,2]
[350978583,1738265443587,-500.0,0.00017059,2]
[350978585,1738265443597,-500.0,0.00017059,2]
[350978586,1738265443606,-500.0,0.00017059,2]
[350978589,1738265443615,-500.0,0.00017059,2]
[350978592,1738265443626,-500.0,0.00017059,2]
[350978594,1738265443635,-500.0,0.00017059,2]
[350978596,1738265443644,-500.0,0.00017059,2]
[350978599,1738265443653,-500.0,0.00017059,2]
[350978602,1738265443662,-500.0,0.00017059,2]
[350978605,1738265443672,-500.0,0.00017059,2]
[350978608,1738265443681,-500.0,0.00017059,2]
[350978611,1738265443690,-500.0,0.00017059,2]
[350978614,1738265443699,-500.0,0.00017059,2]
[350978617,1738265443708,-500.0,0.00017059,2]
[350978620,1738265443717,-500.0,0.00017059,2]
[350978623,1738265443726,-500.0,0.00017059,2]
[350978625,1738265443736,-500.0,0.00017059,2]
[350978627,1738265443745,-500.0,0.00017059,2]
[350978629,1738265443754,-500.0,0.00017059,2]
[350978631,1738265443763,-501.87828107,0.00017059,2]
[350978633,1738265443775,-500.55398058,0.00017059,2]
[350978635,1738265443785,-500.0,0.00017059,2]
[350978637,1738265443794,-500.0,0.00017059,2]
[350978640,1738265443804,-500.0,0.00017059,2]
[350978642,1738265443814,-500.0,0.00017059,2]
[350978644,1738265443823,-500.0,0.00017059,2]
[350978646,1738265443832,-500.0,0.00017059,2]
[350978648,1738265443842,-500.0,0.00017059,2]
[350978650,1738265443850,-500.0,0.00017059,2]
[350978652,1738265443860,-500.0,0.00017059,2]
[350978654,1738265443869,-500.0,0.00017059,2]
[350978656,1738265443879,-500.0,0.00017059,2]
[350978658,1738265443888,-500.0,0.00017059,2]
[350978660,1738265443899,-500.0,0.00017059,2]
[350978661,1738265443910,-500.0,0.00017059,2]
[350978663,1738265443919,-500.0,0.00017059,2]
[350978665,1738265443928,-1198.5,0.00017059,2]
[350978667,1738265443938,-500.0,0.00017059,2]
[350978669,1738265443948,-500.0,0.00017059,2]
[350978671,1738265443958,-500.0,0.00017059,2]
[350978673,1738265443968,-500.0,0.00017059,2]
[350978675,1738265443977,-500.0,0.00017059,2]
[350978677,1738265443986,-500.0,0.00017059,2]
[350978679,1738265443996,-500.0,0.00017059,2]
[350978681,1738265444006,-500.86824252,0.00017059,2]
[350978683,1738265444015,-500.0,0.00017059,2]
[350978685,1738265444025,-500.0,0.00017059,2]
[350978687,1738265444043,-500.0,0.00017059,2]
[350978689,1738265444057,-500.0,0.00017059,2]
[350978691,1738265444066,-500.0,0.00017059,2]
[350978693,1738265444075,-500.0,0.00017059,2]
[350978695,1738265444085,-500.0,0.00017059,2]
[350978697,1738265444094,-500.0,0.00017059,2]
[350978699,1738265444104,-500.0,0.00017059,2]
[350978700,1738265444113,-500.0,0.00017059,2]
[350978702,1738265444123,-500.0,0.00017059,2]
[350978704,1738265444133,-500.0,0.00017059,2]
[350978706,1738265444142,-515.5626792,0.00017059,2]
[350978708,1738265444151,-500.0,0.00017059,2]
[350978710,1738265444161,-500.0,0.00017059,2]
[350978712,1738265444171,-500.0,0.00017059,2]
[350978714,1738265444181,-500.0,0.00017059,2]
[350978716,1738265444190,-500.0,0.00017059,2]
[350978718,1738265444199,-500.0,0.00017059,2]
[350978720,1738265444209,-500.0,0.00017059,2]
[350978722,1738265444218,-500.0,0.00017059,2]
[350978724,1738265444227,-500.0,0.00017059,2]
[350978726,1738265444237,-500.0,0.00017059,2]
[350978728,1738265444245,-500.0,0.00017059,2]
[350978730,1738265444254,-455.1489621,0.00017059,2]
[350978731,1738265444264,-500.0,0.00017059,2]
[350978732,1738265444275,-500.0,0.00017059,2]
[350978733,1738265444283,-500.0,0.00017059,2]
[350978734,1738265444292,-506.30643118,0.00017059,2]
[350978735,1738265444301,-500.0,0.00017059,2]
[350978736,1738265444310,-512.68794293,0.00017059,2]
[350978737,1738265444320,-500.0,0.00017059,2]
[350978738,1738265444329,-500.0,0.00017059,2]
[350978739,1738265444338,-501.75945103,0.00017059,2]
[350978740,1738265444347,-500.0,0.00017059,2]
[350978741,1738265444356,-500.0,0.00017059,2]
[350978742,1738265444364,-500.0,0.00017059,2]
[350978743,1738265444373,-271.82447508,0.00017059,2]
[350978744,1738265444383,-403.18643544,0.00017059,2]
[350978745,1738265444392,-631.47,0.00017059,2]
[350978746,1738265444401,-500.0,0.00017059,2]
[350978747,1738265444410,-500.0,0.00017059,2]
[350978748,1738265444419,-500.0,0.00017059,2]
[350978749,1738265444428,-500.0,0.00017059,2]
[350978750,1738265444438,-500.0,0.00017059,2]
[350978751,1738265444447,-1714.86,0.00017059,2]
[350978752,1738265444457,-500.0,0.00017059,2]
[350978754,1738265444466,-500.0,0.00017059,2]
[350978756,1738265444475,-500.0,0.00017059,2]
[350978758,1738265444485,-593.26171229,0.00017059,2]